fUSD/lending_fUSD_20250107
["ID","MTS","AMOUNT","RATE_DAILY","PERIOD"]
[348021783,1736268656425,-506.74,9.86e-05,2]
[348021784,1736268656435,-958.33,9.86e-05,2]
[348021785,1736268656444,-500.0,9.86e-05,2]
[348021786,1736268656453,-956.06,9.86e-05,2]
[348021787,1736268656462,-503.25,9.86e-05,2]
[348021788,1736268656472,-939.96,9.86e-05,2]
[348021789,1736268656482,-500.0,9.86e-05,2]
[348021790,1736268656491,-1092.85,9.86e-05,2]
[348021791,1736268656500,-1214.95,9.86e-05,2]
[348021792,1736268656510,-500.0,9.86e-05,2]
[348021793,1736268656520,-500.0,9.86e-05,2]
[348021794,1736268656530,-500.0,9.86e-05,2]
[348021795,1736268656540,-623.76,9.86e-05,2]
[348021796,1736268656549,-1114.33,9.86e-05,2]
[348021797,1736268656558,-500.0,9.86e-05,2]
[348021798,1736268656571,-500.0,9.86e-05,2]
[348021799,1736268656581,-679.63,9.86e-05,2]
[348021800,1736268656590,-527.31,9.86e-05,2]
[348021801,1736268656600,-1307.24,9.86e-05,2]
[348021802,1736268656611,-859.28,9.86e-05,2]
[348021803,1736268656620,-1688.86,9.86e-05,2]
[348021804,1736268656629,-2597.12,9.86e-05,2]
[348021805,1736268656639,-917.21,9.86e-05,2]
[348021806,1736268656650,-2164.26,9.86e-05,2]
[348021807,1736268656660,-1267.48,9.86e-05,2]
[348021808,1736268656670,-5884.97,9.86e-05,2]
[348021809,1736268656679,-1401.08,9.86e-05,2]
[348021810,1736268656689,-1512.74,9.86e-05,2]
[348021811,1736268656699,-886.66,9.861e-05,2]
[348021812,1736268656709,-2097.97,9.861e-05,2]
[348021813,1736268656719,-500.0,9.861e-05,2]
[348021814,1736268656729,-1311.27,9.861e-05,2]
[348021815,1736268656739,-1111.46,9.861e-05,2]
[348021816,1736268656752,-531.84,9.861e-05,2]
[348021817,1736268656762,-2273.0,9.861e-05,2]
[348021818,1736268656773,-1028.58,9.861e-05,2]
[348021819,1736268656783,-1591.44,9.861e-05,2]
[348021820,1736268656793,-997.13,9.861e-05,2]
[348021821,1736268656803,-2714.28,9.861e-05,2]
[348021822,1736268656813,-1972.55,9.861e-05,2]
[348021823,1736268656823,-500.0,9.864e-05,2]
[348021824,1736268656832,-500.0,9.867e-05,2]
[348021825,1736268656842,-1321.84,9.867e-05,2]
[348021826,1736268656853,-817.02,9.867e-05,2]
[348021827,1736268656865,-500.0,9.868e-05,2]
[348021828,1736268656875,-556.07,9.868e-05,2]
[348021829,1736268656884,-850.62,9.868e-05,2]
[348021830,1736268656894,-234.23,9.868e-05,2]
[348021831,1736268656903,-500.0,9.868e-05,2]
[348021832,1736268656914,-500.0,9.868e-05,2]
[348021833,1736268656924,-590.0,9.868e-05,2]
[348021834,1736268656933,-310.13238618,9.868e-05,2]
[348021835,1736268656944,-500.0,9.868e-05,2]
[348021836,1736268656953,-733.92,9.868e-05,2]
[348021837,1736268656963,-836.91,9.868e-05,2]
[348021838,1736268656973,-722.53,9.868e-05,2]
[348021839,1736268656983,-500.0,9.868e-05,2]
[348021840,1736268656993,-897.94,9.868e-05,2]
[348021841,1736268657002,-500.0,9.868e-05,2]
[348021842,1736268657011,-500.0,9.868e-05,2]
[348021843,1736268657021,-500.0,9.868e-05,2]
[348021844,1736268657031,-500.0,9.868e-05,2]
[348021845,1736268657041,-500.0,9.868e-05,2]
[348021846,1736268657050,-797.59,9.868e-05,2]
[348021847,1736268657060,-593.4,9.868e-05,2]
[348021848,1736268657070,-500.0,9.868e-05,2]
[348021849,1736268657079,-500.0,9.868e-05,2]
[348021850,1736268657089,-500.0,9.868e-05,2]
[348021851,1736268657098,-910.72,9.868e-05,2]
[348021852,1736268657108,-519.37,9.868e-05,2]
[348021853,1736268657117,-812.74,9.868e-05,2]
[348021854,1736268657127,-500.0,9.868e-05,2]
[348021855,1736268657136,-210.48,9.868e-05,2]
[348021856,1736268657145,-531.28,9.868e-05,2]
[348021857,1736268657155,-500.0,9.868e-05,2]
[348021858,1736268657164,-528.34,9.868e-05,2]
[348021859,1736268657174,-1325.98,9.868e-05,2]
[348021860,1736268657184,-826.1,9.868e-05,2]
[348021861,1736268657193,-500.0,9.868e-05,2]
[348021862,1736268657203,-500.0,9.868e-05,2]
[348021863,1736268657212,-582.94,9.868e-05,2]
[348021864,1736268657221,-960.33,9.868e-05,2]
[348021865,1736268657233,-749.9,9.868e-05,2]
[348021866,1736268657242,-500.0,9.868e-05,2]
[348021867,1736268657252,-824.34,9.868e-05,2]
[348021868,1736268657263,-500.0,9.868e-05,2]
[348021869,1736268657272,-1090.09,9.868e-05,2]
[348021870,1736268657283,-557.29,9.868e-05,2]
[348021871,1736268657294,-663.62,9.868e-05,2]
[348021872,1736268657304,-557.55,9.868e-05,2]
[348021873,1736268657314,-500.0,9.868e-05,2]
[348021874,1736268657324,-500.0,9.868e-05,2]
[348021875,1736268657334,-500.0,9.868e-05,2]
[348021876,1736268657345,-1547.89,9.868e-05,2]
[348021877,1736268657355,-500.0,9.868e-05,2]
[348021878,1736268657365,-913.99,9.868e-05,2]
[348021879,1736268657376,-500.0,9.868e-05,2]
[348021880,1736268657387,-162.88849835,9.868e-05,2]
[348021881,1736268657398,-500.0,9.868e-05,2]
[348021882,1736268657410,-582.8,9.868e-05,2]
[348021883,1736268657421,-500.0,9.868e-05,2]
[348021884,1736268657431,-735.69,9.868e-05,2]
[348021885,1736268657442,-500.0,9.868e-05,2]
[348021886,1736268657453,-548.74,9.868e-05,2]
[348021887,1736268657464,-567.82,9.868e-05,2]
[348021888,1736268657474,-500.0,9.868e-05,2]
[348021889,1736268657484,-609.14,9.868e-05,2]
[348021890,1736268657494,-853.91,9.868e-05,2]
[348021891,1736268657504,-500.0,9.868e-05,2]
[348021892,1736268657514,-500.0,9.868e-05,2]
[348021893,1736268657525,-1230.46,9.868e-05,2]
[348021894,1736268657535,-553.12,9.868e-05,2]
[348021895,1736268657548,-863.2,9.868e-05,2]
[348021896,1736268657558,-531.05,9.868e-05,2]
[348021897,1736268657567,-500.0,9.868e-05,2]
[348021898,1736268657577,-500.0,9.868e-05,2]
[348021899,1736268657589,-500.0,9.868e-05,2]
[348021900,1736268657599,-773.27,9.868e-05,2]
[348021901,1736268657608,-831.05,9.868e-05,2]
[348021902,1736268657620,-2392.33,9.868e-05,2]
[348021903,1736268657630,-514.77,9.868e-05,2]
[348021904,1736268657639,-912.02,9.868e-05,2]
[348021905,1736268657649,-1029.27,9.868e-05,2]
[348021906,1736268657659,-1494.48,9.868e-05,2]
[348021907,1736268657669,-500.0,9.868e-05,2]
[348021908,1736268657678,-500.0,9.868e-05,2]
[348021909,1736268657688,-2127.93,9.868e-05,2]
[348021910,1736268657698,-1004.88,9.868e-05,2]
[348021911,1736268657707,-858.75,9.868e-05,2]
[348021912,1736268657717,-1358.1,9.868e-05,2]
[348021913,1736268657727,-2342.11,9.868e-05,2]
[348021914,1736268657737,-539.24,9.868e-05,2]
[348021915,1736268657749,-609.78,9.868e-05,2]
[348021916,1736268657759,-1333.64,9.868e-05,2]
[348021917,1736268657770,-608.21257426,9.868e-05,2]
[348021918,1736268657779,-2822.03,9.868e-05,2]
[348021919,1736268657789,-602.54,9.868e-05,2]
[348021920,1736268657799,-500.0,9.868e-05,2]
[348021921,1736268657809,-1190.44,9.868e-05,2]
[348021922,1736268657818,-1051.54,9.868e-05,2]
[348021923,1736268657831,-793.26,9.868e-05,2]
[348021924,1736268657843,-1546.56,9.868e-05,2]
[348021925,1736268657852,-722.34,9.868e-05,2]
[348021926,1736268657862,-500.0,9.868e-05,2]
[348021927,1736268657871,-1149.51,9.868e-05,2]
[348021928,1736268657883,-1887.44,9.868e-05,2]
[348021929,1736268657895,-500.0,9.868e-05,2]
[348021930,1736268657905,-865.45,9.868e-05,2]
[348021931,1736268657915,-807.88,9.868e-05,2]
[348021932,1736268657925,-500.0,9.868e-05,2]
[348021933,1736268657935,-910.92,9.868e-05,2]
[348021934,1736268657944,-500.0,9.868e-05,2]
[348021935,1736268657954,-500.0,9.868e-05,2]
[348021936,1736268657964,-500.0,9.868e-05,2]
[348021937,1736268657974,-500.0,9.868e-05,2]
[348021938,1736268657987,-1777.29,9.868e-05,2]
[348021939,1736268657996,-706.99,9.868e-05,2]
[348021940,1736268658007,-757.84,9.868e-05,2]
[348021941,1736268658017,-5860.4,9.868e-05,2]
[348021942,1736268658026,-500.0,9.868e-05,2]
[348021943,1736268658036,-500.0,9.868e-05,2]
[348021944,1736268658046,-253.6,9.868e-05,2]
[348021945,1736268658055,-1001.12,9.868e-05,2]
[348021946,1736268658065,-218.463418,9.868e-05,2]
[348021947,1736268658075,-2561.02,9.868e-05,2]
[348021948,1736268658085,-500.0,9.868e-05,2]
[348021949,1736268658094,-1084.58,9.868e-05,2]
[348021950,1736268658104,-4263.82,9.868e-05,2]
[348021951,1736268658113,-500.0,9.868e-05,2]
[348021952,1736268658123,-1460.17,9.868e-05,2]
[348021953,1736268658132,-500.0,9.868e-05,2]
[348021954,1736268658142,-233.574732,9.868e-05,2]
[348021955,1736268658151,-1616.76,9.868e-05,2]
[348021956,1736268658160,-500.0,9.868e-05,2]
[348021957,1736268658169,-2923.63,9.868e-05,2]
[348021958,1736268658179,-1003.09,9.868e-05,2]
[348021959,1736268658189,-942.56,9.868e-05,2]
[348021960,1736268658198,-500.0,9.868e-05,2]
[348021961,1736268658208,-4374.14,9.868e-05,2]
[348021962,1736268658218,-4714.17,9.868e-05,2]
[348021963,1736268658229,-592.62,9.868e-05,2]
[348021964,1736268658239,-500.0,9.868e-05,2]
[348021965,1736268658249,-2206.35,9.868e-05,2]
[348021966,1736268658259,-1217.32,9.868e-05,2]
[348021967,1736268658269,-500.0,9.868e-05,2]
[348021968,1736268658278,-500.0,9.868e-05,2]
[348021969,1736268658288,-779.65,9.868e-05,2]
[348021970,1736268658298,-544.8,9.868e-05,2]
[348021971,1736268658307,-2901.84,9.868e-05,2]
[348021972,1736268658317,-794.55,9.868e-05,2]
[348021973,1736268658326,-884.2,9.868e-05,2]
[348021974,1736268658336,-2312.21,9.868e-05,2]
[348021975,1736268658346,-500.0,9.868e-05,2]
[348021976,1736268658355,-604.36,9.868e-05,2]
[348021977,1736268658365,-1059.63,9.868e-05,2]
[348021978,1736268658375,-779.93,9.868e-05,2]
[348021979,1736268658384,-500.0,9.868e-05,2]
[348021980,1736268658394,-1153.17,9.868e-05,2]
[348021981,1736268658403,-500.0,9.868e-05,2]
[348021982,1736268658413,-500.0,9.868e-05,2]
[348021983,1736268658423,-559.47,9.868e-05,2]
[348021984,1736268658433,-1870.96,9.868e-05,2]
[348021985,1736268658443,-782.74,9.868e-05,2]
[348021986,1736268658453,-500.0,9.868e-05,2]
[348021987,1736268658463,-595.86,9.868e-05,2]
[348021988,1736268658472,-500.0,9.868e-05,2]
[348021989,1736268658486,-1083.61,9.868e-05,2]
[348021990,1736268658496,-500.0,9.868e-05,2]
[348021991,1736268658506,-500.0,9.868e-05,2]
[348021992,1736268658516,-1115.91,9.868e-05,2]
[348021993,1736268658525,-715.2,9.868e-05,2]
[348021994,1736268658536,-818.1,9.868e-05,2]
[348021995,1736268658547,-500.0,9.868e-05,2]
[348021996,1736268658557,-500.0,9.868e-05,2]
[348021997,1736268658572,-500.0,9.869e-05,2]
[348021998,1736268658582,-500.0,9.869e-05,2]
[348021999,1736268658593,-500.0,9.869e-05,2]
[348022000,1736268658603,-500.0,9.869e-05,2]
[348022001,1736268658613,-500.0,9.869e-05,2]
[348022002,1736268658622,-500.0,9.869e-05,2]
[348022003,1736268658632,-500.0,9.869e-05,2]
[348022004,1736268658644,-500.0,9.869e-05,2]
[348022005,1736268658654,-533.91,9.869e-05,2]
[348022006,1736268658663,-500.0,9.869e-05,2]
[348022007,1736268658673,-500.0,9.869e-05,2]
[348022008,1736268658683,-500.0,9.869e-05,2]
[348022009,1736268658692,-500.0,9.869e-05,2]
[348022010,1736268658702,-500.0,9.869e-05,2]
[348022011,1736268658711,-500.0,9.869e-05,2]
[348022012,1736268658721,-500.0,9.869e-05,2]
[348022013,1736268658732,-500.0,9.869e-05,2]
[348022014,1736268658742,-500.0,9.869e-05,2]
[348022015,1736268658756,-500.0,9.869e-05,2]
[348022016,1736268658767,-500.0,9.869e-05,2]
[348022017,1736268658776,-500.0,9.869e-05,2]
[348022018,1736268658787,-500.0,9.869e-05,2]
[348022019,1736268658796,-538.96,9.869e-05,2]
[348022020,1736268658806,-500.0,9.869e-05,2]
[348022021,1736268658816,-500.0,9.869e-05,2]
[348022022,1736268658825,-500.0,9.869e-05,2]
[348022023,1736268658835,-500.0,9.869e-05,2]
[348022024,1736268658845,-500.0,9.869e-05,2]
[348022025,1736268658854,-500.0,9.869e-05,2]
[348022026,1736268658864,-500.0,9.869e-05,2]
[348022027,1736268658874,-845.74,9.869e-05,2]
[348022028,1736268658883,-500.0,9.869e-05,2]
[348022029,1736268658893,-500.0,9.869e-05,2]
[348022030,1736268658903,-500.0,9.869e-05,2]
[348022031,1736268658913,-500.0,9.869e-05,2]
[348022032,1736268658922,-592.86,9.869e-05,2]
[348022033,1736268658932,-500.0,9.869e-05,2]
[348022034,1736268658942,-600.81,9.869e-05,2]
[348022035,1736268658951,-500.0,9.869e-05,2]
[348022036,1736268658961,-500.0,9.869e-05,2]
[348022037,1736268658972,-519.72,9.869e-05,2]
[348022038,1736268658983,-500.0,9.869e-05,2]
[348022039,1736268658993,-819.07,9.869e-05,2]
[348022040,1736268659003,-500.0,9.869e-05,2]
[348022041,1736268659012,-518.34,9.869e-05,2]
[348022042,1736268659022,-616.88,9.869e-05,2]
[348022043,1736268659032,-500.0,9.869e-05,2]
[348022044,1736268659285,-500.0,9.869e-05,2]
[348022045,1736268659295,-500.0,9.869e-05,2]
[348022046,1736268659304,-500.0,9.869e-05,2]
[348022047,1736268659313,-500.0,9.869e-05,2]
[348022048,1736268659323,-500.0,9.869e-05,2]
[348022049,1736268659332,-500.0,9.869e-05,2]
[348022050,1736268659341,-500.0,9.869e-05,2]
[348022051,1736268659351,-500.0,9.869e-05,2]
[348022052,1736268659360,-500.0,9.869e-05,2]
[348022053,1736268659369,-500.0,9.869e-05,2]
[348022054,1736268659379,-500.0,9.869e-05,2]
[348022055,1736268659388,-500.0,9.869e-05,2]
[348022056,1736268659398,-870.58,9.869e-05,2]
[348022057,1736268659408,-687.56,9.869e-05,2]
[348022058,1736268659418,-500.0,9.869e-05,2]
[348022059,1736268659427,-791.82,9.869e-05,2]
[348022060,1736268659437,-500.0,9.869e-05,2]
[348022061,1736268659446,-500.0,9.869e-05,2]
[348022062,1736268659456,-287.16,9.869e-05,2]
[348022063,1736268659466,-500.0,9.869e-05,2]
[348022064,1736268659476,-500.0,9.869e-05,2]
[348022065,1736268659491,-500.0,9.869e-05,2]
[348022066,1736268659500,-500.0,9.869e-05,2]
[348022067,1736268659510,-927.26,9.869e-05,2]
[348022068,1736268659520,-558.34,9.869e-05,2]
[348022069,1736268659530,-500.0,9.869e-05,2]
[348022070,1736268659541,-500.0,9.869e-05,2]
[348022071,1736268659554,-655.3,9.869e-05,2]
[348022072,1736268659565,-557.31,9.869e-05,2]
[348022073,1736268659574,-656.36,9.869e-05,2]
[348022074,1736268659585,-500.0,9.869e-05,2]
[348022075,1736268659595,-918.28,9.869e-05,2]
[348022076,1736268659606,-582.18,9.869e-05,2]
[348022077,1736268659615,-500.0,9.869e-05,2]
[348022078,1736268659626,-685.99,9.869e-05,2]
[348022079,1736268659636,-264.65482743,9.869e-05,2]
[348022080,1736268659645,-500.0,9.869e-05,2]
[348022081,1736268659655,-500.0,9.869e-05,2]
[348022082,1736268659665,-583.44,9.869e-05,2]
[348022083,1736268659674,-500.0,9.869e-05,2]
[348022084,1736268659684,-641.46,9.869e-05,2]
[348022085,1736268659693,-612.42,9.869e-05,2]
[348022086,1736268659703,-500.0,9.869e-05,2]
[348022087,1736268659713,-520.7,9.869e-05,2]
[348022088,1736268659723,-500.0,9.869e-05,2]
[348022089,1736268659736,-500.0,9.869e-05,2]
[348022090,1736268659745,-500.0,9.869e-05,2]
[348022091,1736268659755,-500.0,9.869e-05,2]
[348022092,1736268659766,-505.14,9.869e-05,2]
[348022093,1736268659776,-500.0,9.869e-05,2]
[348022094,1736268659785,-500.0,9.869e-05,2]
[348022095,1736268659794,-735.13,9.869e-05,2]
[348022096,1736268659804,-500.0,9.869e-05,2]
[348022097,1736268659813,-512.9,9.869e-05,2]
[348022098,1736268659822,-500.0,9.869e-05,2]
[348022099,1736268659832,-500.0,9.869e-05,2]
[348022100,1736268659841,-500.0,9.869e-05,2]
[348022101,1736268659851,-500.0,9.869e-05,2]
[348022102,1736268659860,-500.0,9.869e-05,2]
[348022103,1736268659869,-500.0,9.869e-05,2]
[348022104,1736268659879,-597.15,9.869e-05,2]
[348022105,1736268659888,-921.38,9.869e-05,2]
[348022106,1736268659897,-500.0,9.869e-05,2]
[348022107,1736268659907,-500.0,9.869e-05,2]
[348022108,1736268659916,-500.0,9.869e-05,2]
[348022109,1736268659926,-851.41,9.869e-05,2]
[348022110,1736268659935,-500.0,9.869e-05,2]
[348022111,1736268659944,-398.02516394,9.869e-05,2]
[348022112,1736268659954,-500.0,9.869e-05,2]
[348022113,1736268659963,-500.0,9.869e-05,2]
[348022114,1736268659973,-513.1,9.869e-05,2]
[348022115,1736268659986,-500.0,9.869e-05,2]
[348022116,1736268659996,-500.0,9.869e-05,2]
[348022117,1736268660006,-500.0,9.869e-05,2]
[348022118,1736268660017,-500.0,9.869e-05,2]
[348022119,1736268660027,-500.0,9.869e-05,2]
[348022120,1736268660039,-500.0,9.869e-05,2]
[348022121,1736268660049,-538.02,9.869e-05,2]
[348022122,1736268660059,-526.88,9.869e-05,2]
[348022123,1736268660070,-969.14,9.869e-05,2]
[348022124,1736268660080,-500.0,9.869e-05,2]
[348022125,1736268660089,-850.4,9.869e-05,2]
[348022126,1736268660099,-500.0,9.869e-05,2]
[348022127,1736268660109,-500.0,9.869e-05,2]
[348022128,1736268660118,-500.0,9.869e-05,2]
[348022129,1736268660128,-500.0,9.869e-05,2]
[348022130,1736268660138,-1025.87,9.869e-05,2]
[348022131,1736268660147,-877.47,9.869e-05,2]
[348022132,1736268660157,-500.0,9.869e-05,2]
[348022133,1736268660167,-500.0,9.869e-05,2]
[348022134,1736268660177,-615.53,9.869e-05,2]
[348022135,1736268660188,-500.0,9.869e-05,2]
[348022136,1736268660197,-500.0,9.869e-05,2]
[348022137,1736268660207,-500.0,9.869e-05,2]
[348022138,1736268660217,-590.64,9.869e-05,2]
[348022139,1736268660226,-500.0,9.869e-05,2]
[348022140,1736268660238,-500.0,9.869e-05,2]
[348022141,1736268660247,-585.59,9.869e-05,2]
[348022142,1736268660257,-500.0,9.869e-05,2]
[348022143,1736268660268,-500.0,9.869e-05,2]
[348022144,1736268660277,-646.69,9.869e-05,2]
[348022145,1736268660288,-500.0,9.869e-05,2]
[348022146,1736268660299,-500.0,9.869e-05,2]
[348022147,1736268660309,-615.39,9.954e-05,2]
[348022148,1736268660319,-162.55,0.0001,2]
[348022149,1736268660329,-7487.09767918,0.0001,3]
[348022150,1736268660338,-5100.0,0.0001,3]
[348022151,1736268660348,-1000.0,0.00010087,2]
[348022152,1736268660358,-586.97556454,0.00010087,2]
[348022153,1736268660367,-500.0,0.00010133,2]
[348022154,1736268660376,-500.0,0.00010133,2]
[348022155,1736268660386,-500.0,0.00010133,2]
[348022156,1736268660395,-3449.31,0.00010134,2]
[348022157,1736268660404,-1127.87,0.00010134,2]
[348022158,1736268660413,-1080.32,0.00010134,2]
[348022159,1736268660423,-2140.99,0.00010134,2]
[348022160,1736268660432,-1743.43,0.00010134,2]
[348022161,1736268660442,-500.0,0.00010134,2]
[348022162,1736268660451,-4639.5,0.00010134,2]
[348022163,1736268660460,-3610.9,0.00010134,2]
[348022164,1736268660470,-734.32,0.00010134,2]
[348022165,1736268660481,-500.0,0.00010134,2]
[348022166,1736268660491,-500.0,0.00010134,2]
[348022167,1736268660500,-612.11,0.00010134,2]
[348022168,1736268660510,-500.0,0.00010134,2]
[348022169,1736268660519,-1544.38,0.00010134,2]
[348022170,1736268660529,-850.81,0.00010134,2]
[348022171,1736268660538,-500.0,0.00010134,2]
[348022172,1736268660548,-500.0,0.00010134,2]
[348022173,1736268660558,-662.0,0.00010134,2]
[348022174,1736268660571,-747.67,0.00010134,2]
[348022175,1736268660580,-500.0,0.00010134,2]
[348022176,1736268660590,-772.19,0.00010134,2]
[348022177,1736268660599,-588.87,0.00010134,2]
[348022178,1736268660610,-2961.16,0.00010134,2]
[348022179,1736268660619,-590.95,0.00010134,2]
[348022180,1736268660629,-774.32,0.00010134,2]
[348022181,1736268660638,-655.07,0.00010134,2]
[348022182,1736268660648,-500.0,0.00010134,2]
[348022183,1736268660657,-506.74,0.00010134,2]
[348022184,1736268660667,-958.33,0.00010134,2]
[348022185,1736268660676,-500.0,0.00010134,2]
[348022186,1736268660685,-956.06,0.00010134,2]
[348022187,1736268660695,-503.25,0.00010134,2]
[348022188,1736268660704,-939.96,0.00010134,2]
[348022189,1736268660713,-500.0,0.00010134,2]
[348022190,1736268660723,-1092.85,0.00010134,2]
[348022191,1736268660735,-1214.95,0.00010134,2]
[348022192,1736268660746,-500.0,0.00010134,2]
[348022193,1736268660756,-500.0,0.00010134,2]
[348022194,1736268660766,-500.0,0.00010134,2]
[348022195,1736268660776,-623.76,0.00010134,2]
[348022196,1736268660785,-1114.33,0.00010134,2]
[348022197,1736268660795,-304.76,0.00010134,2]
[348022198,1736268660804,-500.0,0.00010134,2]
[348022199,1736268660813,-679.63,0.00010134,2]
[348022200,1736268660823,-527.31,0.00010134,2]
[348022201,1736268660833,-1307.24,0.00010134,2]
[348022202,1736268660842,-859.28,0.00010134,2]
[348022203,1736268660851,-1688.86,0.00010134,2]
[348022204,1736268660861,-2597.12,0.00010134,2]
[348022205,1736268660870,-917.21,0.00010134,2]
[348022206,1736268660879,-2164.26,0.00010134,2]
[348022207,1736268660888,-1267.48,0.00010134,2]
[348022208,1736268660898,-5884.97,0.00010134,2]
[348022209,1736268660907,-1401.08,0.00010134,2]
[348022210,1736268660916,-1512.74,0.00010134,2]
[348022211,1736268660925,-886.66,0.00010135,2]
[348022212,1736268660935,-2097.97,0.00010135,2]
[348022213,1736268660945,-500.0,0.00010135,2]
[348022214,1736268660954,-1311.27,0.00010135,2]
[348022215,1736268660964,-1111.46,0.00010135,2]
[348022216,1736268660974,-531.84,0.00010135,2]
[348022217,1736268660984,-2273.0,0.00010135,2]
[348022218,1736268660993,-1028.58,0.00010135,2]
[348022219,1736268661002,-1591.44,0.00010135,2]
[348022220,1736268661012,-997.13,0.00010135,2]
[348022221,1736268661021,-2714.28,0.00010135,2]
[348022222,1736268661031,-1972.55,0.00010135,2]
[348022223,1736268661040,-500.0,0.00010141,2]
[348022224,1736268661050,-1321.84,0.00010141,2]
[348022225,1736268661060,-817.02,0.00010141,2]
[348022226,1736268661069,-500.0,0.00010142,2]
[348022227,1736268661078,-556.07,0.00010142,2]
[348022228,1736268661087,-850.62,0.00010142,2]
[348022229,1736268661097,-500.0,0.00010142,2]
[348022230,1736268661106,-500.0,0.00010142,2]
[348022231,1736268661115,-590.0,0.00010142,2]
[348022232,1736268661125,-500.0,0.00010142,2]
[348022233,1736268661134,-733.92,0.00010142,2]
[348022234,1736268661143,-836.91,0.00010142,2]
[348022235,1736268661153,-722.53,0.00010142,2]
[348022236,1736268661162,-500.0,0.00010142,2]
[348022237,1736268661171,-897.94,0.00010142,2]
[348022238,1736268661181,-500.0,0.00010142,2]
[348022239,1736268661190,-500.0,0.00010142,2]
[348022240,1736268661200,-500.0,0.00010142,2]
[348022241,1736268661209,-500.0,0.00010142,2]
[348022242,1736268661218,-500.0,0.00010142,2]
[348022243,1736268661228,-797.59,0.00010142,2]
[348022244,1736268661246,-593.4,0.00010142,2]
[348022245,1736268661256,-500.0,0.00010142,2]
[348022246,1736268661266,-500.0,0.00010142,2]
[348022247,1736268661275,-500.0,0.00010142,2]
[348022248,1736268661284,-910.72,0.00010142,2]
[348022249,1736268661294,-519.37,0.00010142,2]
[348022250,1736268661303,-812.74,0.00010142,2]
[348022251,1736268661312,-500.0,0.00010142,2]
[348022252,1736268661322,-531.28,0.00010142,2]
[348022253,1736268661331,-500.0,0.00010142,2]
[348022254,1736268661341,-528.34,0.00010142,2]
[348022255,1736268661350,-1325.98,0.00010142,2]
[348022256,1736268661360,-826.1,0.00010142,2]
[348022257,1736268661370,-500.0,0.00010142,2]
[348022258,1736268661379,-500.0,0.00010142,2]
[348022259,1736268661389,-582.94,0.00010142,2]
[348022260,1736268661398,-960.33,0.00010142,2]
[348022261,1736268661407,-749.9,0.00010142,2]
[348022262,1736268661417,-500.0,0.00010142,2]
[348022263,1736268661426,-824.34,0.00010142,2]
[348022264,1736268661435,-500.0,0.00010142,2]
[348022265,1736268661445,-1090.09,0.00010142,2]
[348022266,1736268661454,-557.29,0.00010142,2]
[348022267,1736268661464,-663.62,0.00010142,2]
[348022268,1736268661473,-557.55,0.00010142,2]
[348022269,1736268661487,-500.0,0.00010142,2]
[348022270,1736268661496,-500.0,0.00010142,2]
[348022271,1736268661506,-500.0,0.00010142,2]
[348022272,1736268661515,-1547.89,0.00010142,2]
[348022273,1736268661525,-500.0,0.00010142,2]
[348022274,1736268661534,-913.99,0.00010142,2]
[348022275,1736268661546,-500.0,0.00010142,2]
[348022276,1736268661556,-500.0,0.00010142,2]
[348022277,1736268661565,-582.8,0.00010142,2]
[348022278,1736268661575,-500.0,0.00010142,2]
[348022279,1736268661585,-735.69,0.00010142,2]
[348022280,1736268661595,-500.0,0.00010142,2]
[348022281,1736268661606,-548.74,0.00010142,2]
[348022282,1736268661616,-567.82,0.00010142,2]